fUST/lending_fUST_20240215
["ID","MTS","AMOUNT","RATE_DAILY","PERIOD"]
[314090735,1707970240715,-510.66884095,0.00036728,14]
[314090737,1707970240724,-507.61309093,0.00036728,14]
[314090740,1707970240734,-500.0,0.00036728,14]
[314090741,1707970240743,-500.0,0.00036728,14]
[314090743,1707970240752,-1716.08,0.00036728,14]
[314090753,1707970240830,-500.0,0.00036728,14]
[314090755,1707970240839,-500.0,0.00036728,14]
[314090757,1707970240848,-442.04517344,0.00036728,14]
[314090759,1707970240857,-500.0,0.00036728,14]
[314090761,1707970240866,-500.0,0.00036728,14]
[314090763,1707970240875,-500.0,0.00036728,14]
[314090765,1707970240885,-500.0,0.00036728,14]
[314090767,1707970240894,-1679.01,0.00036728,14]
[314090769,1707970240903,-800.84,0.00036728,14]
[314090771,1707970240913,-500.0,0.00036729,14]
[314090773,1707970240922,-500.0,0.00036729,14]
[314090775,1707970240931,-515.87291042,0.00036729,14]
[314090777,1707970240941,-500.0,0.00036729,14]
[314090779,1707970240950,-500.0,0.00036729,14]
[314090781,1707970240959,-500.0,0.00036729,14]
[314090783,1707970240968,-557.77740763,0.00036729,14]
[314090785,1707970240977,-823.56,0.00036729,14]
[314090787,1707970240986,-500.0,0.00036729,14]
[314090789,1707970240996,-735.59,0.00036729,14]
[314090791,1707970241006,-507.8299765,0.00036729,14]
[314090793,1707970241015,-500.0,0.00036729,14]
[314090795,1707970241025,-393.15183719,0.00036729,14]
[314090797,1707970241034,-500.0,0.00036729,14]
[314090799,1707970241043,-500.0,0.00036729,14]
[314090801,1707970241053,-684.44,0.00036729,14]
[314090803,1707970241063,-500.0,0.00036729,14]
[314090805,1707970241072,-500.0,0.00036729,14]
[314090807,1707970241082,-529.90121524,0.00036729,14]
[314090809,1707970241091,-902.17,0.00036729,14]
[314090811,1707970241100,-500.0,0.00036729,14]
[314090813,1707970241109,-500.0,0.00036729,14]
[314090815,1707970241118,-229.69975012,0.00036729,14]
[314090817,1707970241128,-500.0,0.00036729,14]
[314090819,1707970241137,-500.0,0.00036729,14]
[314090821,1707970241148,-1486.43,0.00036729,14]
[314090823,1707970241156,-502.74547419,0.00036729,14]
[314090825,1707970241166,-504.65261844,0.00036729,14]
[314090827,1707970241175,-563.14162363,0.00036729,14]
[314090830,1707970241185,-500.0,0.00036729,14]
[314090832,1707970241194,-18029.82,0.00036729,14]
[314090834,1707970241203,-501.86324605,0.00036729,14]
[314090836,1707970241212,-500.0,0.00036729,14]
[314090838,1707970241221,-767.44,0.00036729,14]
[314090840,1707970241230,-17288.41,0.00036729,14]
[314090841,1707970241239,-500.0,0.00036729,14]
[314090843,1707970241248,-5319.3,0.00036729,14]
[314090846,1707970241257,-1387.5,0.00036729,14]
[314090847,1707970241267,-500.0,0.00036729,14]
[314090850,1707970241276,-505.77159695,0.00036729,14]
[314090852,1707970241286,-500.0,0.00036729,14]
[314090854,1707970241295,-500.0,0.00036729,14]
[314090856,1707970241304,-500.0,0.00036729,14]
[314090858,1707970241313,-500.0,0.00036729,14]
[314090860,1707970241322,-500.0,0.00036729,14]
[314090862,1707970241331,-507.25398123,0.00036729,14]
[314090864,1707970241340,-500.0,0.00036729,14]
[314090866,1707970241350,-1582.11,0.0003673,14]
[314090868,1707970241359,-500.0,0.0003673,14]
[314090870,1707970241368,-500.0,0.0003673,14]
[314090872,1707970241377,-2229.99,0.0003673,7]
[314090874,1707970241387,-548.30171102,0.0003673,14]
[314090876,1707970241399,-500.0,0.0003673,14]
[314090878,1707970241411,-500.0,0.00036731,14]
[314090880,1707970241420,-500.0,0.00036731,14]
[314090882,1707970241430,-411.54715449,0.00036731,14]
[314090884,1707970241441,-500.0,0.00036731,14]
[314090886,1707970241451,-500.0,0.00036731,14]
[314090888,1707970241460,-265.94803034,0.00036731,14]
[314090890,1707970241469,-500.0,0.00036731,14]
[314090892,1707970241479,-500.0,0.00036731,14]
[314090893,1707970241489,-511.85670083,0.00036731,14]
[314090894,1707970241498,-500.0,0.00036731,14]
[314090895,1707970241507,-500.0,0.00036731,14]
[314090896,1707970241515,-500.0,0.00036731,14]
[314090897,1707970241524,-500.0,0.00036731,14]
[314090898,1707970241533,-500.0,0.00036731,14]
[314090899,1707970241541,-500.0,0.00036731,14]
[314090900,1707970241550,-500.0,0.00036731,14]
[314090901,1707970241558,-513.66558092,0.00036731,14]
[314090902,1707970241567,-500.0,0.00036732,7]
[314090903,1707970241576,-500.0,0.00036732,14]
[314090904,1707970241585,-500.0,0.00036732,7]
[314090905,1707970241594,-500.0,0.00036732,14]
[314090908,1707970241609,-7949.51106263,0.0003678,30]
[314090910,1707970241623,-500.0,0.00036799,14]
[314090913,1707970241637,-500.0,0.00036799,14]
[314090915,1707970241650,-500.0,0.00036799,14]
[314090917,1707970241659,-534.01172213,0.00036799,14]
[314090920,1707970241672,-218457.29822456,0.000368,30]
[314090923,1707970241690,-1526.11327591,0.000368,30]
[314090945,1707970241885,-4339.92424158,0.000368,30]
[314091079,1707970243115,-2115.27941732,0.000368,30]
[314091081,1707970243130,-2160.94182371,0.000368,30]
[314091164,1707970243945,-775.86062491,0.00036591,14]
[314092094,1707971432177,-164.86215798,0.00026191,2]
[314092096,1707971432187,-229.0,0.00032193,2]
[314092097,1707971432195,-41219.73141621,0.00032193,5]
[314092099,1707971432207,-310.07907669,0.00032193,5]
[314092575,1707971438271,-8421.0804582,0.00032193,5]
[314092577,1707971438284,-7711.24463333,0.00032193,5]
[314092579,1707971438293,-259.2197973,0.00033073,2]
[314092581,1707971438302,-429.93886121,0.00033321,2]
[314092583,1707971438312,-737.093811,0.00033421,2]
[314092585,1707971438322,-1351.019556,0.00033421,2]
[314092587,1707971438331,-737.093811,0.00033838,2]
[314092589,1707971438340,-1351.019556,0.00033838,2]
[314092591,1707971438349,-1417.03,0.0003403,3]
[314092593,1707971438358,-2702.19,0.0003403,3]
[314092596,1707971438367,-2251.82,0.0003403,3]
[314092597,1707971438376,-24900.0,0.0003404,2]
[314092598,1707971438385,-163.34901771,0.00034156,2]
[314092599,1707971438394,-737.093811,0.00034256,2]
[314092600,1707971438403,-1351.019556,0.00034256,2]
[314092601,1707971438412,-737.093811,0.00034674,2]
[314092602,1707971438421,-1351.019556,0.00034674,2]
[314092603,1707971438431,-263.7118701,0.000347,2]
[314092604,1707971438440,-163.3490177,0.00034714,2]
[314092605,1707971438449,-166.0,0.00035,2]
[314092606,1707971438458,-186.0,0.00035,2]
[314092607,1707971438467,-3173.773,0.00035,10]
[314092608,1707971438476,-737.093811,0.00035092,2]
[314092609,1707971438486,-1351.019556,0.00035092,2]
[314092610,1707971438495,-389.12090912,0.000351,10]
[314092611,1707971438504,-229.0,0.00035193,2]
[314092612,1707971438514,-163.3490177,0.00035273,2]
[314092614,1707971438523,-250.0,0.00035411,15]
[314092616,1707971438535,-155.0,0.00035488,2]
[314092618,1707971438544,-500.0,0.00035616,14]
[314092619,1707971438554,-500.0,0.00035616,14]
[314092621,1707971438564,-500.0,0.00035616,14]
[314092623,1707971438573,-500.0,0.00035616,14]
[314092624,1707971438582,-600.0,0.000358,3]
[314092626,1707971438592,-600.0,0.000358,2]
[314092627,1707971438601,-163.3490177,0.00035831,2]
[314092629,1707971438610,-308.766801,0.00036164,2]
[314092631,1707971438619,-371.0566587,0.00036164,2]
[314092632,1707971438628,-312.8842493,0.00036164,2]
[314092633,1707971438637,-202.6069513,0.00036164,2]
[314092634,1707971438647,-186.0,0.00036247,2]
[314092635,1707971438656,-153.34627261,0.00036272,7]
[314092636,1707971438665,-5000.0,0.00036302,7]
[314092637,1707971438674,-166.0,0.00036383,2]
[314092638,1707971438683,-163.3490177,0.00036389,2]
[314092639,1707971438692,-500.0,0.00036477,15]
[314092640,1707971438701,-397.04612724,0.00036477,15]
[314092641,1707971438711,-183.61581775,0.00036477,15]
[314092642,1707971438720,-500.0,0.00036477,15]
[314092643,1707971438729,-500.0,0.00036477,15]
[314092644,1707971438739,-500.0,0.00036477,15]
[314092645,1707971438748,-513.61772715,0.00036477,15]
[314092646,1707971438758,-500.0,0.00036477,15]
[314092647,1707971438767,-500.0,0.00036477,15]
[314092648,1707971438777,-500.0,0.00036477,15]
[314092649,1707971438789,-500.0,0.00036477,15]
[314092650,1707971438798,-500.0,0.00036477,15]
[314092651,1707971438808,-500.0,0.00036477,15]
[314092652,1707971438817,-500.0,0.00036477,15]
[314092653,1707971438828,-500.0,0.00036477,15]
[314092654,1707971438837,-500.0,0.00036477,15]
[314092655,1707971438846,-500.0,0.00036477,15]
[314092656,1707971438857,-500.0,0.00036477,15]
[314092657,1707971438866,-500.0,0.00036477,15]
[314092658,1707971438877,-500.0,0.00036477,15]
[314092659,1707971438886,-500.0,0.00036477,15]
[314092660,1707971438896,-500.0,0.00036477,15]
[314092661,1707971438907,-500.0,0.00036477,15]
[314092662,1707971438917,-500.0,0.00036477,15]
[314092663,1707971438926,-500.0,0.00036477,15]
[314092664,1707971438935,-500.0,0.00036477,15]
[314092665,1707971438945,-500.0,0.00036477,15]
[314092666,1707971438955,-500.0,0.00036477,15]
[314092667,1707971438964,-500.0,0.00036477,15]
[314092668,1707971438973,-500.0,0.00036477,15]
[314092669,1707971438982,-500.0,0.00036477,15]
[314092670,1707971438992,-500.0,0.00036477,15]
[314092671,1707971439001,-500.0,0.00036477,15]
[314092672,1707971439010,-500.0,0.00036477,15]
[314092673,1707971439019,-500.0,0.00036477,15]
[314092674,1707971439029,-500.0,0.00036477,15]
[314092675,1707971439038,-500.0,0.00036477,15]
[314092676,1707971439048,-500.0,0.00036477,15]
[314092677,1707971439057,-500.0,0.00036477,15]
[314092678,1707971439066,-500.0,0.00036477,15]
[314092679,1707971439075,-500.0,0.00036477,15]
[314092680,1707971439085,-500.0,0.00036477,15]
[314092681,1707971439094,-500.0,0.00036477,15]
[314092682,1707971439103,-500.0,0.00036477,15]
[314092683,1707971439112,-500.0,0.00036477,15]
[314092684,1707971439121,-500.0,0.00036477,15]
[314092685,1707971439131,-500.0,0.00036477,15]
[314092686,1707971439140,-500.0,0.00036477,15]
[314092687,1707971439149,-500.0,0.00036477,15]
[314092688,1707971439159,-500.0,0.00036477,15]
[314092689,1707971439169,-14571.35950289,0.00036478,61]
[314092690,1707971439178,-16280.72,0.00036481,14]
[314092691,1707971439187,-242.14726824,0.00036481,14]
[314092692,1707971439196,-855.86,0.00036481,14]
[314092693,1707971439205,-27012.92,0.00036481,14]
[314092694,1707971439215,-500.0,0.00036481,14]
[314092695,1707971439225,-16762.71,0.00036481,14]
[314092696,1707971439234,-500.0,0.00036481,14]
[314092697,1707971439244,-502.42635629,0.00036481,14]
[314092698,1707971439253,-500.0,0.00036481,14]
[314092699,1707971439262,-500.0,0.00036481,14]
[314092700,1707971439272,-637.27,0.00036481,14]
[314092701,1707971439282,-500.0,0.00036484,14]
[314092702,1707971439291,-764.59,0.00036484,14]
[314092703,1707971439389,-2377.53,0.00036484,14]
[314092704,1707971439398,-1223.23,0.00036484,14]
[314092705,1707971439408,-849.03,0.00036484,14]
[314092706,1707971439417,-2047.66,0.00036484,14]
[314092707,1707971439427,-1375.14,0.00036484,14]
[314092708,1707971439436,-8504.9,0.00036484,14]
[314092709,1707971439445,-7996.03,0.00036484,14]
[314092710,1707971439454,-250.0,0.00036484,2]
[314092711,1707971439464,-3337.16,0.00036484,14]
[314092712,1707971439474,-500.0,0.00036485,14]
[314092713,1707971439483,-500.0,0.00036485,14]
[314092714,1707971439493,-1364.21,0.00036485,14]
[314092715,1707971439502,-500.0,0.00036485,14]
[314092716,1707971439511,-534.30204635,0.00036485,14]
[314092717,1707971439521,-509.89484034,0.00036485,14]
[314092718,1707971439531,-500.0,0.00036485,14]
[314092719,1707971439541,-1643.32,0.00036485,14]
[314092720,1707971439550,-500.0,0.00036485,14]
[314092721,1707971439559,-500.0,0.00036485,14]
[314092722,1707971439568,-500.0,0.00036485,14]
[314092723,1707971439578,-500.0,0.00036485,14]
[314092724,1707971439587,-2522.53,0.00036485,14]
[314092725,1707971439596,-500.0,0.00036485,14]
[314092726,1707971439606,-500.0,0.00036486,14]
[314092727,1707971439616,-500.0,0.00036486,14]
[314092728,1707971439625,-500.0,0.00036486,14]
[314092729,1707971439635,-285.50953037,0.00036487,14]
[314092730,1707971439645,-510.46755575,0.00036487,14]
[314092731,1707971439655,-500.0,0.00036487,14]
[314092732,1707971439665,-517.39206153,0.00036487,14]
[314092733,1707971439675,-500.0,0.00036487,14]
[314092734,1707971439686,-195.99445327,0.00036487,14]
[314092735,1707971439697,-500.0,0.00036487,14]
[314092736,1707971439707,-500.0,0.00036487,14]
[314092737,1707971439718,-184.23353177,0.00036487,14]
[314092738,1707971439729,-514.93351127,0.00036487,14]
[314092739,1707971439741,-500.0,0.00036487,14]
[314092740,1707971439750,-516.94149683,0.00036487,14]
[314092741,1707971439761,-500.0,0.00036487,14]
[314092742,1707971439771,-500.0,0.00036487,14]
[314092743,1707971439781,-916.37,0.00036487,14]
[314092744,1707971439790,-593.73,0.00036487,14]
[314092745,1707971439800,-501.74485484,0.00036487,14]
[314092746,1707971439808,-500.0,0.00036487,14]
[314092747,1707971439817,-540.13,0.00036487,14]
[314092748,1707971439827,-500.0,0.00036487,14]
[314092749,1707971439837,-557.04962915,0.00036487,14]
[314092750,1707971439846,-506.57653874,0.00036487,14]
[314092751,1707971439855,-500.0,0.00036487,14]
[314092752,1707971439865,-401.84311323,0.00036487,14]
[314092753,1707971439874,-698.3,0.00036487,14]
[314092754,1707971439883,-500.0,0.00036487,14]
[314092755,1707971439892,-266.15669203,0.00036487,14]
[314092756,1707971439901,-500.0,0.00036487,14]
[314092757,1707971439910,-500.0,0.00036487,14]
[314092758,1707971439919,-500.0,0.00036487,14]
[314092759,1707971439928,-500.0,0.00036487,14]
[314092760,1707971439937,-500.0,0.00036487,14]
[314092761,1707971439947,-500.0,0.00036487,14]
[314092762,1707971439956,-489.82980321,0.00036487,14]
[314092763,1707971439965,-212.18676146,0.00036487,14]
[314092764,1707971439975,-583.6952767,0.00036487,14]
[314092765,1707971439984,-504.18399464,0.00036487,14]
[314092766,1707971439993,-2113.44,0.00036487,14]
[314092767,1707971440002,-500.0,0.00036487,14]
[314092768,1707971440011,-500.0,0.00036487,14]
[314092769,1707971440020,-1063.08,0.00036487,14]
[314092770,1707971440031,-500.0,0.00036487,14]
[314092771,1707971440040,-500.0,0.00036487,14]
[314092772,1707971440049,-1637.93,0.00036487,14]
[314092773,1707971440061,-500.0,0.00036487,14]
[314092774,1707971440071,-500.0,0.00036487,14]
[314092775,1707971440081,-18029.82,0.00036487,14]
[314092776,1707971440090,-500.0,0.00036487,14]
[314092777,1707971440100,-500.0,0.00036487,14]
[314092778,1707971440110,-639.53,0.00036487,14]
[314092779,1707971440119,-17288.41,0.00036487,14]
[314092780,1707971440128,-503.03626653,0.00036487,14]
[314092781,1707971440137,-500.0,0.00036487,14]
[314092782,1707971440147,-2010.67,0.00036487,14]
[314092783,1707971440156,-5381.8,0.00036487,14]
[314092784,1707971440166,-1456.62,0.00036487,14]
[314092785,1707971440176,-939.08,0.00036487,14]
[314092786,1707971440186,-1930.14,0.00036487,14]
[314092787,1707971440196,-500.0,0.00036487,14]
[314092788,1707971440206,-500.0,0.00036487,14]
[314092789,1707971440215,-500.0,0.00036487,14]
[314092790,1707971440225,-500.0,0.00036488,2]
[314092791,1707971440235,-346.27020784,0.00036488,14]
[314092792,1707971440244,-500.0,0.00036488,14]
[314092793,1707971440255,-500.0,0.00036488,14]
[314092794,1707971440266,-500.0,0.00036488,14]
[314092795,1707971440277,-500.0,0.00036488,14]
[314092796,1707971440288,-500.0,0.00036489,14]
[314092797,1707971440297,-500.0,0.00036489,14]
[314092798,1707971440307,-500.0,0.00036489,14]
[314092799,1707971440316,-500.0,0.00036489,14]
[314092800,1707971440325,-530.35047603,0.00036489,14]
[314092801,1707971440334,-500.0,0.00036489,14]
[314092802,1707971440343,-512.63857938,0.00036489,14]
[314092803,1707971440353,-511.58957897,0.00036489,14]
[314092804,1707971440362,-500.0,0.00036489,14]
[314092805,1707971440372,-823.56,0.00036489,14]
[314092806,1707971440381,-500.0,0.00036489,14]
[314092807,1707971440389,-500.0,0.00036489,14]
[314092808,1707971440399,-500.0,0.00036489,14]
[314092809,1707971440409,-302.19009296,0.00036489,14]
[314092810,1707971440418,-500.0,0.00036489,14]
[314092811,1707971440427,-503.32932476,0.00036489,14]
[314092812,1707971440436,-439.02807789,0.00036489,14]
[314092813,1707971440445,-503.4326383,0.00036489,14]
[314092814,1707971440455,-508.6563458,0.00036489,14]
[314092815,1707971440464,-500.0,0.00036489,14]
[314092816,1707971440473,-500.0,0.00036489,14]
[314092817,1707971440482,-511.00343445,0.00036489,14]
[314092818,1707971440492,-500.0,0.00036489,14]
[314092819,1707971440502,-500.0,0.00036489,14]
[314092820,1707971440511,-500.0,0.00036489,14]
[314092821,1707971440521,-500.0,0.00036489,14]
[314092822,1707971440532,-504.24519245,0.00036489,14]
[314092823,1707971440541,-500.0,0.00036489,14]
[314092824,1707971440550,-315.01598404,0.00036489,14]
[314092825,1707971440559,-500.0,0.00036489,14]
[314092826,1707971440569,-503.4400308,0.00036489,14]
[314092827,1707971440578,-528.03076737,0.00036489,14]
[314092828,1707971440588,-500.0,0.00036489,14]
[314092829,1707971440597,-500.0,0.00036489,14]
[314092830,1707971440606,-544.11636985,0.00036489,14]
[314092831,1707971440616,-500.0,0.00036489,14]
[314092832,1707971440625,-510.79586648,0.00036489,14]
[314092833,1707971440634,-564.36544628,0.00036489,14]
[314092834,1707971440643,-574.18027158,0.00036489,14]
[314092835,1707971440653,-506.21858276,0.00036489,14]
[314092836,1707971440663,-500.0,0.00036489,14]
[314092837,1707971440672,-503.20204968,0.00036489,14]
[314092838,1707971440681,-500.0,0.00036489,7]
[314092839,1707971440691,-500.0,0.00036489,14]
[314092840,1707971440700,-500.0,0.00036489,14]
[314092842,1707971440710,-500.0,0.00036489,14]
[314092844,1707971440719,-500.0,0.00036489,14]
[314092846,1707971440728,-345.27422997,0.00036489,14]
[314092847,1707971440741,-500.0,0.00036489,7]
[314092848,1707971440752,-500.0,0.00036489,14]
[314092849,1707971440761,-178.61972058,0.00036489,14]
[314092850,1707971440770,-500.0,0.00036489,14]
[314092851,1707971440780,-500.0,0.00036489,14]
[314092852,1707971440789,-431.41224199,0.00036489,14]
[314092853,1707971440798,-502.96749761,0.00036489,14]
[314092854,1707971440807,-551.44609297,0.00036489,14]
[314092855,1707971440816,-500.0,0.00036489,14]
[314092856,1707971440826,-500.0,0.00036489,14]
[314092857,1707971440839,-503.68135752,0.00036489,14]
[314092858,1707971440848,-504.68343651,0.00036489,14]
[314092859,1707971440858,-503.59517549,0.00036489,14]
[314092860,1707971440866,-500.0,0.00036489,14]
[314092861,1707971440876,-502.47326589,0.00036489,14]
[314092862,1707971440885,-500.0,0.00036489,14]
[314092863,1707971440894,-502.27692986,0.00036489,14]
[314092864,1707971440903,-500.0,0.00036489,14]
[314092865,1707971440912,-502.74075274,0.00036489,14]
[314092866,1707971440921,-542.99508916,0.00036489,14]
[314092867,1707971440930,-450.74553218,0.00036489,14]
[314092868,1707971440939,-500.0,0.00036489,14]
[314092869,1707971440949,-500.0,0.00036489,14]
[314092870,1707971440958,-555.85105106,0.00036489,14]
[314092871,1707971440967,-332.80978677,0.00036489,14]
[314092872,1707971440976,-568.45781319,0.00036489,14]
[314092873,1707971440985,-171.89335008,0.00036489,14]
[314092874,1707971440994,-506.64620486,0.00036489,14]
[314092875,1707971441004,-641.09533347,0.00036489,14]
[314092876,1707971441013,-500.0,0.00036489,14]
[314092877,1707971441022,-500.0,0.00036489,14]
[314092878,1707971441032,-500.0,0.00036489,14]
[314092879,1707971441041,-500.0,0.00036489,14]
[314092880,1707971441050,-500.0,0.00036489,14]
[314092881,1707971441059,-500.0,0.00036489,14]
[314092882,1707971441069,-500.0,0.00036489,14]
[314092883,1707971441078,-505.28274655,0.00036489,14]
[314092884,1707971441087,-500.0,0.00036489,14]
[314092885,1707971441096,-500.0,0.00036489,14]
[314092886,1707971441105,-500.0,0.00036489,14]
[314092887,1707971441114,-505.56615774,0.00036489,14]
[314092888,1707971441123,-500.0,0.00036489,14]
[314092889,1707971441133,-500.0,0.00036489,14]
[314092890,1707971441142,-500.0,0.00036489,14]
[314092891,1707971441151,-536.17297969,0.00036489,14]
[314092892,1707971441229,-500.0,0.00036489,14]
[314092893,1707971441238,-501.30006247,0.00036489,14]
[314092894,1707971441247,-508.16048991,0.00036489,14]
[314092895,1707971441257,-502.4620901,0.00036489,14]
[314092896,1707971441265,-504.77975332,0.00036489,14]
[314092897,1707971441275,-500.0,0.00036489,14]
[314092898,1707971441285,-500.0,0.00036489,14]
[314092899,1707971441293,-500.0,0.00036489,14]
[314092900,1707971441302,-500.0,0.00036489,14]
[314092901,1707971441312,-500.0,0.00036489,14]
[314092902,1707971441321,-500.0,0.00036489,14]
[314092903,1707971441331,-506.56484932,0.00036489,14]
[314092904,1707971441341,-501.66356561,0.00036489,14]
[314092905,1707971441350,-500.0,0.00036489,14]
[314092906,1707971441359,-1110.06,0.00036489,2]
[314092907,1707971441368,-1110.06,0.00036489,2]
[314092908,1707971441378,-1110.06,0.00036489,2]
[314092909,1707971441386,-1110.06,0.00036489,2]
[314092910,1707971441396,-1110.06,0.00036489,2]
[314092911,1707971441405,-1110.06,0.00036489,2]
[314092912,1707971441414,-1110.06,0.00036489,2]
[314092913,1707971441423,-1110.06,0.00036489,2]
[314092914,1707971441432,-1110.06,0.00036489,2]
[314092915,1707971441441,-1110.06,0.00036489,2]
[314092916,1707971441451,-206912.19898155,0.0003649,2]
[314092917,1707971441460,-500.0,0.00036588,14]
[314092918,1707971441470,-500.0,0.00036588,14]
[314092919,1707971441479,-500.0,0.00036588,14]
[314092920,1707971441488,-490.0,0.00036588,14]
[314092921,1707971441497,-500.0,0.00036589,14]
[314092922,1707971441507,-2326.95,0.00036589,7]
[314092923,1707971441517,-500.0,0.00036589,14]
[314092924,1707971441526,-500.0,0.00036589,14]
[314092925,1707971441537,-580.37169468,0.00036591,14]
[314092926,1707971441546,-500.0,0.00036591,14]
[314092927,1707971441556,-500.0,0.00036591,7]
[314092928,1707971441565,-500.0,0.00036591,14]
[314092929,1707971441574,-500.0,0.00036591,7]
[314092930,1707971441584,-500.0,0.00036591,14]
[314092931,1707971441593,-392.64141406,0.00036591,14]
[314092932,1707971441602,-263.2000811,0.00036591,14]
[314092933,1707971441612,-339.79293651,0.00036591,14]
[314092934,1707971441621,-500.0,0.00036591,14]
[314092935,1707971441630,-500.0,0.00036591,14]
[314092936,1707971441640,-502.73300401,0.00036591,14]
[314092937,1707971441649,-500.0,0.00036591,14]
[314092938,1707971441659,-514.834404,0.00036592,14]
[314092939,1707971441668,-500.0,0.00036592,14]
[314092940,1707971441678,-500.0,0.00036592,14]
[314092941,1707971441687,-505.6144463,0.00036592,14]
[314092942,1707971441696,-500.0,0.00036592,14]
[314092943,1707971441705,-500.0,0.00036617,15]
[314092944,1707971441715,-409.87247855,0.00036617,15]
[314092945,1707971441724,-500.0,0.00036617,15]
[314092946,1707971441733,-596.70127433,0.00036617,15]
[314092947,1707971441749,-500.0,0.00036617,15]
[314092948,1707971441758,-500.0,0.00036617,15]
[314092949,1707971441768,-500.0,0.00036617,15]
[314092950,1707971441778,-500.0,0.00036617,15]
[314092951,1707971441788,-500.0,0.00036617,15]
[314092952,1707971441798,-197.33585836,0.00036617,15]
[314092953,1707971441807,-539.02217487,0.00036617,15]
[314092954,1707971441817,-276.07965877,0.00036617,15]
[314092955,1707971441827,-500.0,0.00036617,15]
[314092956,1707971441836,-500.0,0.00036617,15]
[314092957,1707971441845,-500.0,0.00036617,15]
[314092958,1707971441855,-500.0,0.00036617,15]
[314092959,1707971441865,-500.0,0.00036617,15]
[314092960,1707971441874,-500.0,0.00036617,15]
[314092961,1707971441884,-500.0,0.00036617,15]
[314092962,1707971441893,-500.0,0.00036617,15]
[314092963,1707971441903,-500.0,0.00036617,15]
[314092964,1707971441914,-500.0,0.00036617,15]
[314092965,1707971441925,-237.36669679,0.00036617,15]
[314092966,1707971441936,-500.0,0.00036617,15]
[314092967,1707971441947,-500.0,0.00036617,15]
[314092968,1707971441958,-500.0,0.00036617,15]
[314092969,1707971441967,-500.0,0.00036617,15]
[314092970,1707971441977,-16280.72,0.00036618,14]
[314092971,1707971441986,-855.86,0.00036618,14]
[314092972,1707971441996,-27012.92,0.00036618,14]
[314092973,1707971442006,-500.0,0.00036618,14]
[314092974,1707971442016,-16762.71,0.00036618,14]
[314092975,1707971442026,-500.0,0.00036618,14]
[314092976,1707971442037,-500.0,0.00036618,14]
[314092977,1707971442048,-500.0,0.00036618,14]
[314092978,1707971442058,-637.27,0.00036618,14]
[314092979,1707971442067,-500.0,0.00036621,14]
[314092980,1707971442076,-764.59,0.00036621,14]
[314092981,1707971442086,-2377.53,0.00036621,14]
[314092982,1707971442094,-1223.23,0.00036621,14]
[314092983,1707971442104,-849.03,0.00036621,14]
[314092984,1707971442115,-2047.66,0.00036621,14]
[314092985,1707971442126,-1375.14,0.00036621,14]
[314092986,1707971442136,-8504.9,0.00036621,14]
[314092987,1707971442145,-7996.03,0.00036621,14]
[314092988,1707971442155,-3337.16,0.00036621,14]
[314092989,1707971442164,-576.70942644,0.00036622,14]
[314092990,1707971442174,-1364.21,0.00036622,14]
[314092991,1707971442183,-500.0,0.00036622,14]
[314092992,1707971442192,-151.0,0.00036622,2]
[314092993,1707971442201,-220.21429,0.00036622,2]